bitfinex/quotes_SOLUSD_20241220
["timestamp","ask_amount","ask_price","bid_price","bid_amount"]
[1734685361583,42.5165072,180.96,180.87,42.5165072]
[1734685361909,42.5165072,180.98,180.9,23.776884]
[1734685362102,42.5165072,181.0,180.92,23.776884]
[1734685362302,42.5165072,180.98,180.92,23.776884]
[1734685362619,42.5165072,180.96,180.87,42.5165072]
[1734685362788,42.5165072,180.96,180.82,4.3]
[1734685362789,42.5165072,180.94,180.88,23.776884]
[1734685363108,42.5165072,180.92,180.85,42.5165072]
[1734685363294,42.5165072,180.94,180.85,42.5165072]
[1734685363484,42.5165072,180.98,180.89,42.5165072]
[1734685363911,42.5165072,180.96,180.89,42.5165072]
[1734685364086,42.5165072,180.94,180.85,42.5165072]
[1734685364506,42.5165072,180.92,180.85,42.5165072]
[1734685365183,42.5165072,180.92,180.83,42.5165072]
[1734685365511,42.5165072,180.9,180.81,42.5165072]
[1734685366088,42.5165072,180.88,180.79,42.5165072]
[1734685366286,42.5165072,180.86,180.77,42.5165072]
[1734685366709,42.5165072,180.88,180.79,42.5165072]
[1734685366932,42.5165072,180.86,180.77,42.5165072]
[1734685367411,42.5165072,180.84,180.75,42.5165072]
[1734685367710,42.5165072,180.88,180.79,42.5165072]
[1734685368093,42.5165072,180.92,180.83,42.5165072]
[1734685368515,1.03652188,180.91,180.83,42.5165072]
[1734685368690,42.5165072,180.92,180.85,42.5165072]
[1734685368894,1.03634729,180.91,180.84,23.776884]
[1734685369097,1.03634729,180.91,180.83,42.5165072]
[1734685369299,42.5165072,180.9,180.81,42.5165072]
[1734685369503,42.5165072,180.88,180.79,42.5165072]
[1734685369707,42.5165072,180.88,180.81,42.5165072]
[1734685370013,1.03680239,180.98,180.87,42.5165072]
[1734685370014,42.5165072,180.96,180.87,42.5165072]
[1734685370189,1.03620485,180.95,180.87,42.5165072]
[1734685370394,42.5165072,180.96,180.87,42.5165072]
[1734685370609,42.5165072,180.96,180.89,42.5165072]
[1734685370922,42.5165072,180.98,180.89,42.5165072]
[1734685371116,1.03614364,180.97,180.87,42.5165072]
[1734685371332,42.5165072,180.92,180.85,42.5165072]
[1734685372014,42.5165072,180.96,180.88,23.776884]
[1734685372217,1.03622093,180.95,180.87,42.5165072]
[1734685372421,42.5165072,180.94,180.86,23.776884]
[1734685372600,42.5165072,180.99,180.85,42.5165072]
[1734685372601,42.5165072,180.92,180.85,42.5165072]
[1734685372799,42.5165072,180.9,180.81,42.5165072]
[1734685373016,42.5165072,180.88,180.79,42.5165072]
[1734685373317,42.5165072,180.86,180.78,6.4656]
[1734685373643,42.5165072,180.8,180.69,49.0685072]
[1734685373921,42.5165072,180.74,180.65,42.5165072]
[1734685374133,42.5165072,180.76,180.67,42.5165072]
[1734685374295,42.5165072,180.78,180.69,42.5165072]
[1734685374697,42.5165072,180.76,180.69,42.5165072]
[1734685374924,42.5165072,180.78,180.71,42.5165072]
[1734685375244,42.5165072,180.8,180.71,42.5165072]
[1734685375407,42.5165072,180.78,180.69,42.5165072]
[1734685375736,42.5165072,180.8,180.71,42.5165072]
[1734685375895,1.03712544,180.85,180.77,42.5165072]
[1734685376104,1.03677804,180.94,180.81,42.5165072]
[1734685376324,42.5165072,180.94,180.85,42.5165072]
[1734685376533,42.5165072,180.9,180.83,42.5165072]
[1734685376739,42.5165072,180.9,180.83,23.776884]
[1734685377603,42.5165072,180.9,180.82,42.5165072]
[1734685377815,42.5165072,180.92,180.84,42.5165072]
[1734685378100,42.5165072,180.94,180.85,23.776884]
[1734685379222,42.5165072,180.92,180.83,23.776884]
[1734685379423,42.5165072,180.87,180.78,42.5165072]
[1734685379802,42.5165072,180.89,180.8,42.5165072]
[1734685380004,42.5165072,180.91,180.82,42.5165072]
[1734685380329,42.5165072,180.91,180.76,20.4071]
[1734685380330,42.5165072,180.89,180.8,42.5165072]
[1734685380621,42.5165072,180.93,180.84,42.5165072]
[1734685380825,42.5165072,180.93,180.85,23.776884]
[1734685381023,1.03636743,180.92,180.85,23.776884]
[1734685381326,1.03636743,180.92,180.77,4.42549]
[1734685381327,42.5165072,180.87,180.79,20.0]
[1734685381501,42.5165072,180.89,180.81,23.776884]
[1734685381697,1.03681524,180.95,180.81,23.776884]
[1734685381698,42.5165072,180.91,180.81,23.776884]
[1734685381897,43.55307988,180.98,180.89,23.776884]
[1734685382098,42.5165072,181.0,180.93,23.776884]
[1734685382332,43.55270153,181.06,180.97,23.776884]
[1734685382630,5.7308,181.15,180.94,42.5165072]
[1734685382631,42.5165072,181.02,180.94,42.5165072]
[1734685382801,42.5165072,181.02,180.95,23.776884]
[1734685382997,42.5165072,181.0,180.93,23.776884]
[1734685383630,42.5165072,181.02,180.93,23.776884]
[1734685383828,42.5165072,181.04,180.95,23.776884]
[1734685384125,42.5165072,181.04,180.97,23.776884]
[1734685384327,43.55218989,181.08,180.99,23.776884]
[1734685384502,42.5165072,181.08,181.0,42.5165072]
[1734685384704,42.5165072,181.12,181.04,42.5165072]
[1734685384999,42.5165072,181.16,181.09,23.776884]
[1734685385221,42.5165072,181.18,181.1,42.5165072]
[1734685385428,42.5165072,181.18,181.11,23.776884]
[1734685385635,42.5165072,181.14,181.06,42.5165072]
[1734685385833,42.5165072,181.1,181.02,42.5165072]
[1734685386123,42.5165072,181.17,180.93,50.1453]
[1734685386124,42.5165072,181.06,180.98,42.5165072]
[1734685386317,1.03560303,181.16,181.02,42.5165072]
[1734685386517,42.5165072,181.11,181.04,42.5165072]
[1734685386824,42.5165072,181.11,181.02,42.5165072]
[1734685387047,42.5165072,181.03,180.93,6.3283]
[1734685387200,42.5165072,181.07,180.99,42.5165072]
[1734685387402,42.5165072,181.09,181.01,42.5165072]
[1734685387815,42.5165072,181.13,181.05,42.5165072]
[1734685388031,42.5165072,181.11,181.03,42.5165072]
[1734685388246,42.5165072,181.07,180.99,42.5165072]
[1734685388532,42.5165072,181.03,180.95,42.5165072]
[1734685388925,42.5165072,181.05,180.95,42.5165072]
[1734685389229,1.03571046,181.04,180.95,42.5165072]
[1734685389525,42.5165072,181.03,180.95,42.5165072]
[1734685389942,42.5165072,181.01,180.91,42.5165072]
[1734685390251,42.5165072,180.95,180.87,42.5165072]
[1734685390412,42.5165072,180.95,180.85,6.4832]
[1734685390413,1.03640797,180.94,180.85,48.9997072]
[1734685390920,42.5165072,180.97,180.87,42.5165072]
[1734685391112,42.5165072,180.99,180.89,42.5165072]
[1734685391441,42.5165072,181.01,180.91,42.5165072]
[1734685391732,6.904,181.06,180.91,42.5165072]
[1734685391733,42.5165072,180.99,180.91,42.5165072]
[1734685391925,1.036189,180.98,180.89,42.5165072]
[1734685392150,42.5165072,180.95,180.85,6.4832]
[1734685392316,42.5165072,180.91,180.83,42.5165072]
[1734685392509,42.5165072,180.93,180.85,42.5165072]
[1734685392714,42.5165072,180.95,180.87,42.5165072]
[1734685393030,1.03633036,180.94,180.89,42.5165072]
[1734685393231,1.03631195,180.96,180.89,42.5165072]
[1734685393418,1.03631195,180.96,180.87,42.5165072]
[1734685393749,42.5165072,180.97,180.89,42.5165072]
[1734685393950,42.5165072,180.99,180.91,42.5165072]
[1734685394121,1.03603551,180.98,180.91,42.5165072]
[1734685394453,42.5165072,180.97,180.87,42.5165072]
[1734685394734,42.5165072,180.91,180.83,42.5165072]
[1734685394940,1.03664593,180.9,180.81,42.5165072]
[1734685395117,42.5165072,180.91,180.83,42.5165072]
[1734685395635,42.5165072,180.93,180.83,42.5165072]
[1734685395820,42.5165072,180.93,180.85,42.5165072]
[1734685396135,42.5165072,180.95,180.85,42.5165072]
[1734685396337,42.5165072,180.93,180.85,42.5165072]
[1734685396645,1.03650365,180.92,180.63,342.24906594]
[1734685396847,317.76686654,180.62,180.54,2.1205575]
[1734685397015,20.0,180.5,180.48,34.90260676]
[1734685397209,1.82825117,180.49,180.35,57.14791404]
[1734685397438,20.0,180.38,180.34,101.77907206]
[1734685397643,28.57136495,180.37,180.18,0.05954545]
[1734685397825,70.36758205,180.22,180.18,0.05954545]
[1734685398155,27.69928005,180.19,180.18,0.05954545]
[1734685398638,27.24366798,180.18,179.8,295.86701055]
[1734685398807,10.52014491,180.19,180.0,59.43956872]
[1734685398808,69.80894886,180.1,180.0,59.43956872]
[1734685399012,42.5165072,180.1,180.0,57.0894767]
[1734685399239,27.27238591,180.11,180.0,52.84314068]
[1734685399416,10.52014491,180.09,180.04,42.5165072]
[1734685399747,43.55736511,180.16,180.08,42.5165072]
[1734685399748,27.59049721,180.16,180.08,42.5165072]
[1734685399917,27.23827882,180.21,180.1,42.5165072]
[1734685400118,27.95860933,180.14,180.1,42.5165072]
[1734685400313,27.95860933,180.14,180.12,42.5165072]
[1734685400527,41.80568266,180.15,180.12,42.5165072]
[1734685400738,39.02638266,180.15,180.09,30.0]
[1734685400940,39.02638266,180.15,180.08,42.5165072]
[1734685401129,39.02638266,180.15,180.01,22.30486858]
[1734685401130,27.01339088,180.15,180.04,42.5165072]
[1734685401325,42.5165072,180.14,180.04,42.5165072]
[1734685401546,42.5165072,180.16,180.07,42.5165072]
[1734685401718,27.14811028,180.19,180.09,42.5165072]
[1734685401924,69.52964615,180.17,180.05,42.5165072]
[1734685402124,42.5165072,180.13,180.06,13.8842]
[1734685402526,42.5165072,180.15,180.06,13.8842]
[1734685402721,27.69543789,180.26,180.07,42.5165072]
[1734685402933,3.28744565,180.27,180.07,42.5165072]
[1734685402934,69.52964615,180.17,180.07,42.5165072]
[1734685403259,27.31061491,180.21,180.07,42.5165072]
[1734685403422,27.9187232,180.22,180.16,20.0]
[1734685403621,27.69543789,180.26,180.2,20.0]
[1734685403851,27.29067467,180.24,180.15,42.5165072]
[1734685404061,70.386596,180.23,180.16,20.0]
[1734685404349,27.17099046,180.2,180.14,13.878]
[1734685404545,27.92738182,180.18,180.14,13.878]
[1734685404727,1.04048107,180.26,180.1,13.881]
[1734685404728,27.3017384,180.16,180.1,13.881]
[1734685405142,27.17099046,180.2,180.14,20.0]
[1734685405338,28.21140378,180.2,180.11,42.5165072]
[1734685405525,27.17099046,180.2,180.11,46.19676131]
[1734685405720,28.21159797,180.2,180.11,46.19676131]
[1734685405985,27.92738182,180.18,180.11,46.19676131]
[1734685406251,27.9187232,180.22,180.13,42.5165072]
[1734685406427,27.17099046,180.2,180.13,42.5165072]
[1734685406618,1.0405367,180.22,180.13,42.5165072]
[1734685406823,1.04050955,180.26,180.15,42.5165072]
[1734685407128,3.29677173,180.31,180.22,42.5165072]
[1734685407129,45.81327893,180.31,180.22,42.5165072]
[1734685407325,42.5165072,180.31,180.22,42.5165072]
[1734685407558,1.0399369,180.3,180.22,42.5165072]
[1734685407730,42.5165072,180.31,180.22,42.5165072]
[1734685408349,43.53002995,180.35,180.26,42.5165072]
[1734685408645,43.53002995,180.35,180.25,23.776884]
[1734685408646,42.5165072,180.37,180.28,42.5165072]
[1734685408944,42.5165072,180.37,180.23,13.8711]
[1734685408945,42.5165072,180.33,180.24,42.5165072]
[1734685409146,42.5165072,180.33,180.24,43.34840648]
[1734685409356,42.5165072,180.33,180.24,42.5165072]
[1734685409644,22.174807,180.46,180.23,13.8711]
[1734685409866,42.5165072,180.36,180.28,42.5165072]
[1734685410157,42.5165072,180.38,180.29,23.776884]
[1734685410463,42.5165072,180.38,180.31,23.776884]
[1734685410635,42.5165072,180.32,180.15,3.7803]
[1734685410832,42.5165072,180.32,180.22,42.5165072]
[1734685411056,42.5165072,180.32,180.24,42.5165072]
[1734685411339,42.5165072,180.32,180.22,42.5165072]
[1734685411533,42.5165072,180.32,180.24,42.5165072]
[1734685411775,42.5165072,180.34,180.24,42.5165072]
[1734685412067,42.5165072,180.4,180.3,42.5165072]
[1734685412239,42.5165072,180.4,180.32,42.5165072]
[1734685412562,42.5165072,180.42,180.36,23.776884]
[1734685412752,42.5165072,180.48,180.39,23.776884]
[1734685412947,22.16215,180.57,180.39,23.776884]
[1734685412948,42.5165072,180.52,180.42,62.5165072]
[1734685413157,42.5165072,180.54,180.46,42.5165072]
[1734685413343,42.5165072,180.58,180.48,42.5165072]
[1734685413545,42.5165072,180.58,180.49,23.776884]
[1734685414143,42.5165072,180.56,180.46,43.34720816]
[1734685414363,4.01576103,180.54,180.44,42.5165072]
[1734685414671,42.5165072,180.6,180.51,42.5165072]
[1734685415053,42.5165072,180.65,180.58,20.0]
[1734685415253,3.28195907,180.71,180.59,42.5165072]
[1734685415565,42.5165072,180.72,180.63,42.5165072]
[1734685415862,42.5165072,180.7,180.6,23.776884]
[1734685416068,42.5165072,180.68,180.57,46.2937072]
[1734685416267,3.30789027,180.76,180.61,42.5165072]
[1734685416561,42.5165072,180.71,180.61,42.5165072]
[1734685416768,42.5165072,180.72,180.63,42.5165072]
[1734685416948,42.5165072,180.72,180.64,23.776884]
[1734685417149,42.5165072,180.7,180.61,42.5165072]
[1734685417354,57.91130764,180.81,180.63,42.5165072]
[1734685417557,57.91130764,180.81,180.62,23.776884]
[1734685417558,5.7308,181.15,180.84,3.6395]
[1734685417762,42.5165072,181.11,181.0,42.5165072]
[1734685418065,42.5165072,181.17,181.05,42.5165072]
[1734685418379,49.0483072,181.26,181.14,42.5165072]
[1734685418380,9.6547,181.26,181.14,42.5165072]
[1734685418674,42.5165072,181.26,181.16,42.5165072]
[1734685418974,42.5165072,181.26,181.08,42.5165072]
[1734685418975,42.5165072,181.3,181.21,42.5165072]
[1734685419651,42.5165072,181.28,181.17,42.5165072]
[1734685419853,42.5165072,181.2,181.11,42.5165072]
[1734685420162,42.5165072,181.12,181.03,42.5165072]
[1734685420370,42.5165072,181.26,181.07,42.5165072]
[1734685420660,22.078595,181.28,181.08,0.82825272]
[1734685420855,3.34171412,181.22,181.01,0.82800114]
[1734685421370,3.34171412,181.22,180.95,3.37918323]
[1734685421576,9.6578,181.2,180.95,3.37918323]
[1734685421783,42.5165072,181.13,181.02,42.5165072]
[1734685421950,42.5165072,181.13,181.04,42.5165072]
[1734685422152,42.5165072,181.13,181.02,42.5165072]
[1734685422460,42.5165072,181.07,180.97,42.5165072]
[1734685422656,42.5165072,181.07,180.99,42.5165072]
[1734685422976,42.5165072,181.03,180.93,42.5165072]
[1734685423278,20.0,181.13,180.95,42.5165072]
[1734685423479,42.5165072,181.08,180.99,42.5165072]
[1734685423657,45.84771932,181.12,181.03,42.5165072]
[1734685423875,42.5165072,181.12,181.03,42.5165072]
[1734685424073,16.9259487,181.3,181.09,42.5165072]
[1734685424284,42.5165072,181.24,181.15,42.5165072]
[1734685424652,42.5165072,181.22,181.13,42.5165072]
[1734685425154,64.5933182,181.28,181.17,42.5165072]
[1734685425474,52.1663072,181.35,181.17,42.5165072]
[1734685425475,42.5165072,181.3,181.21,42.5165072]
[1734685426268,42.5165072,181.35,181.26,42.5165072]
[1734685426755,42.5165072,181.33,181.24,42.5165072]
[1734685426953,42.5165072,181.26,181.13,20.0]
[1734685427257,42.5165072,181.23,181.13,42.5165072]
[1734685427453,42.5165072,181.21,181.11,42.5165072]
[1734685427669,42.5165072,181.26,181.05,42.5165072]
[1734685427670,42.5165072,181.14,181.05,42.5165072]
[1734685427878,20.0,181.11,181.03,42.5165072]
[1734685428059,42.5165072,181.08,180.99,42.5165072]
[1734685428380,42.5165072,181.08,180.97,42.5165072]
[1734685428573,42.5165072,181.08,180.99,42.5165072]
[1734685428795,42.5165072,181.1,181.0,42.5165072]
[1734685429075,42.5165072,181.11,181.01,42.5165072]
[1734685429288,3.23619125,181.18,180.99,42.5165072]
[1734685429490,42.5165072,181.14,181.05,42.5165072]
[1734685429664,42.5165072,181.12,181.03,42.5165072]
[1734685430493,42.5165072,181.14,181.05,42.5165072]
[1734685430705,9.6594,181.17,181.01,42.5165072]
[1734685430989,42.5165072,181.16,181.05,42.5165072]
[1734685431748,42.5165072,181.14,181.05,42.5165072]
[1734685431952,42.5165072,181.16,181.05,42.5165072]
[1734685432154,22.064942,181.38,181.15,42.5165072]
[1734685432374,42.5165072,181.3,181.21,42.5165072]
[1734685432605,42.5165072,181.32,181.23,42.5165072]
[1734685432771,3.36739184,181.34,181.23,42.5165072]
[1734685432971,3.36739184,181.34,181.15,0.12549]
[1734685433174,42.5165072,181.35,181.25,42.5165072]
[1734685433398,42.5165072,181.35,181.27,42.5165072]
[1734685433778,45.85736953,181.37,181.27,42.5165072]
[1734685434099,275.25035934,181.59,181.2,20.0]
[1734685434100,22.056481,181.47,181.36,23.776884]
[1734685434420,42.5165072,181.52,181.42,42.5165072]
[1734685434620,45.84676992,181.52,181.42,42.5165072]
[1734685434997,42.5165072,181.45,181.36,42.5165072]
[1734685435377,42.5165072,181.42,181.31,42.5165072]
[1734685435975,42.5165072,181.4,181.31,42.5165072]
[1734685436573,42.5165072,181.38,181.29,42.5165072]
[1734685436812,42.5165072,181.38,181.27,42.5165072]
[1734685437109,42.5165072,181.36,181.25,42.5165072]
[1734685437307,42.5165072,181.34,181.23,42.5165072]
[1734685437505,62.5165072,181.38,181.27,42.5165072]
[1734685437689,42.5165072,181.38,181.29,42.5165072]
[1734685438022,42.5165072,181.64,181.39,27.42981203]
[1734685438308,42.5165072,181.66,181.55,42.5165072]
[1734685438798,9.6339,181.65,181.55,42.5165072]
[1734685438978,42.5165072,181.68,181.57,42.5165072]
[1734685439180,42.5165072,181.68,181.59,41.7781072]
[1734685439379,42.5165072,181.68,181.58,23.776884]
[1734685439617,42.5165072,181.68,181.59,42.5165072]
[1734685439908,42.5165072,181.7,181.6,23.776884]
[1734685440407,42.5165072,181.76,181.66,23.776884]
[1734685440591,42.5165072,181.7,181.61,42.5165072]
[1734685440790,42.5165072,181.7,181.6,23.776884]
[1734685441097,42.5165072,181.74,181.66,42.5165072]
[1734685441302,9.6282,181.76,181.66,42.5165072]
[1734685441303,52.1447072,181.76,181.67,23.776884]
[1734685441476,42.5165072,181.8,181.7,42.5165072]
[1734685441676,42.5165072,181.8,181.71,23.776884]
[1734685441912,9.625,181.82,181.74,42.5165072]
[1734685442089,9.625,181.82,181.72,42.5165072]
[1734685442281,42.5165072,181.86,181.76,42.5165072]
[1734685442596,9.6225,181.87,181.75,23.776884]
[1734685442597,9.6225,181.87,181.78,42.5165072]
[1734685442789,42.5165072,181.86,181.76,42.5165072]
[1734685442982,42.5165072,181.81,181.7,42.5165072]
[1734685443309,42.5165072,181.8,181.7,42.5165072]
[1734685443607,42.5165072,181.76,181.66,42.5165072]
[1734685443814,42.5165072,181.72,181.64,42.5165072]
[1734685444103,42.5165072,181.7,181.6,42.5165072]
[1734685444706,42.5165072,181.74,181.64,42.5165072]
[1734685444905,20.0,181.73,181.66,42.5165072]
[1734685445094,42.5165072,181.74,181.66,42.5165072]
[1734685445501,42.5165072,181.74,181.64,42.5165072]
[1734685445707,20.0,181.73,181.68,42.5165072]
[1734685445901,42.5165072,181.82,181.72,42.5165072]
[1734685446220,9.6222,181.87,181.79,42.5165072]
[1734685446393,42.5165072,181.86,181.77,42.5165072]
[1734685446726,42.5165072,181.81,181.73,42.5165072]
[1734685447094,42.5165072,181.77,181.68,42.5165072]
[1734685447300,20.0,181.72,181.64,42.5165072]
[1734685447622,42.5165072,181.71,181.62,42.5165072]
[1734685447823,42.5165072,181.63,181.54,42.5165072]
[1734685447995,20.0,181.72,181.58,42.5165072]
[1734685448310,42.5165072,181.67,181.56,42.5165072]
[1734685448504,42.5165072,181.65,181.56,42.5165072]
[1734685448698,42.5165072,181.67,181.58,42.5165072]
[1734685449221,42.5165072,181.63,181.54,42.5165072]
[1734685449424,42.5165072,181.59,181.5,42.5165072]
[1734685449789,42.5165072,181.53,181.45,6.64022285]
[1734685450010,42.5165072,181.53,181.44,42.5165072]
[1734685450215,42.5165072,181.53,181.42,42.5165072]
[1734685450521,48.159,181.69,181.51,42.5165072]
[1734685450686,9.632,181.69,181.57,42.5165072]
[1734685450881,42.5165072,181.63,181.45,0.82647768]
[1734685451189,42.5165072,181.7,181.6,42.5165072]
[1734685451505,42.5165072,181.67,181.57,42.5165072]
[1734685451815,42.5165072,181.7,181.59,42.5165072]
[1734685452016,42.5165072,181.7,181.61,42.5165072]
[1734685452233,45.77263679,181.74,181.65,42.5165072]
[1734685452530,42.5165072,181.8,181.71,42.5165072]
[1734685452820,42.5165072,181.85,181.75,42.5165072]
[1734685453020,42.5165072,181.85,181.76,23.776884]
[1734685453229,42.5165072,181.83,181.74,23.776884]
[1734685453419,42.5165072,181.79,181.7,23.776884]
[1734685453624,42.5165072,181.77,181.67,42.5165072]
[1734685453909,42.5165072,181.71,181.61,42.5165072]
[1734685454110,42.5165072,181.8,181.59,42.5165072]
[1734685454111,42.5165072,181.67,181.59,42.5165072]
[1734685454320,42.5165072,181.71,181.61,42.5165072]
[1734685454487,42.5165072,181.73,181.63,42.5165072]
[1734685454692,42.5165072,181.69,181.59,42.5165072]
[1734685454906,42.5165072,181.73,181.63,42.5165072]
[1734685455097,42.5165072,181.75,181.65,42.5165072]
[1734685455301,42.5165072,181.71,181.62,42.5165072]
[1734685455818,42.5165072,181.69,181.6,42.5165072]
[1734685456115,42.5165072,181.63,181.54,42.5165072]
[1734685456503,42.5165072,181.57,181.48,42.5165072]
[1734685456702,42.5165072,181.55,181.46,42.5165072]
[1734685457295,42.5165072,181.51,181.42,42.5165072]
[1734685457491,42.5165072,181.47,181.38,43.3429513]
[1734685457718,42.5165072,181.43,181.34,42.5165072]
[1734685457930,42.5165072,181.39,181.32,3.28405105]
[1734685458216,42.5165072,181.39,181.3,42.5165072]
[1734685458423,42.5165072,181.53,181.32,42.5165072]
[1734685458424,42.5165072,181.41,181.32,42.5165072]
[1734685458720,42.5165072,181.39,181.3,42.5165072]
[1734685458895,42.5165072,181.37,181.28,42.5165072]
[1734685459096,42.5165072,181.41,181.32,42.5165072]
[1734685459311,42.5165072,181.39,181.3,42.5165072]
[1734685459594,42.5165072,181.41,181.32,42.5165072]
[1734685460927,42.5165072,181.39,181.3,42.5165072]
[1734685461519,42.5165072,181.43,181.34,42.5165072]
[1734685461829,42.5165072,181.41,181.32,42.5165072]
[1734685462001,42.5165072,181.37,181.28,42.5165072]
[1734685462421,42.5165072,181.35,181.26,42.5165072]
[1734685462612,42.5165072,181.33,181.24,42.5165072]
[1734685462815,42.5165072,181.29,181.2,42.5165072]
[1734685463116,42.5165072,181.3,181.22,42.5165072]
[1734685463304,42.5165072,181.32,181.22,42.5165072]
[1734685463501,42.5165072,181.38,181.28,42.5165072]
[1734685463693,3.36620738,181.42,181.29,0.82717747]
[1734685464014,3.36620738,181.42,181.21,13.92089]
[1734685464340,3.36620738,181.42,181.22,0.82732523]
[1734685464498,3.36620738,181.42,181.23,0.12549]
[1734685464701,3.36620738,181.42,181.25,0.12549]
[1734685464920,42.5165072,181.44,181.35,42.5165072]
[1734685465095,42.5165072,181.42,181.33,42.5165072]
[1734685465608,42.5165072,181.42,181.34,23.776884]
[1734685466115,42.5165072,181.4,181.32,23.776884]
[1734685466325,42.5165072,181.38,181.29,42.5165072]
[1734685466712,42.5165072,181.4,181.31,42.5165072]
[1734685467218,42.5165072,181.34,181.26,0.82711516]
[1734685467401,42.5165072,181.34,181.25,62.5165072]
[1734685467402,42.5165072,181.34,181.25,42.5165072]
[1734685467604,42.5165072,181.38,181.3,0.12549]
[1734685467907,42.5165072,181.47,181.31,0.12549]
[1734685468107,3.38234721,181.48,181.32,0.8269136]
[1734685468726,3.38234721,181.48,181.33,23.776884]
[1734685468927,22.04471,181.52,181.36,20.0]
[1734685469105,19.2763,181.57,181.43,42.5165072]
[1734685469305,42.5165072,181.57,181.48,23.776884]
[1734685469511,42.5165072,181.59,181.52,23.776884]
[1734685469730,42.5165072,181.59,181.51,42.5165072]
[1734685469936,42.5165072,181.57,181.48,23.776884]
[1734685470232,42.5165072,181.51,181.39,0.82633714]
[1734685470442,42.5165072,181.51,181.43,42.5165072]
[1734685470624,42.5165072,181.51,181.44,23.776884]
[1734685470815,42.5165072,181.49,181.41,42.5165072]
[1734685471010,42.5165072,181.49,181.39,42.5165072]
[1734685471217,42.5165072,181.49,181.41,42.5165072]
[1734685471535,42.5165072,181.51,181.41,42.5165072]
[1734685471911,42.5165072,181.55,181.47,42.5165072]
[1734685472234,42.5165072,181.61,181.53,42.5165072]
[1734685472441,42.5165072,181.61,181.54,23.776884]
[1734685472644,42.5165072,181.59,181.52,23.776884]
[1734685472929,42.5165072,181.53,181.45,42.5165072]
[1734685473131,42.5165072,181.55,181.47,42.5165072]
[1734685473331,42.5165072,181.57,181.49,42.5165072]
[1734685473566,42.5165072,181.57,181.44,42.5165072]
[1734685473567,42.5165072,181.61,181.51,42.5165072]
[1734685473766,42.5165072,181.65,181.58,20.0]
[1734685473944,9.6331,181.67,181.55,42.5165072]
[1734685473945,42.5165072,181.63,181.55,42.5165072]
[1734685474144,42.5165072,181.65,181.57,42.5165072]
[1734685474444,42.5165072,181.69,181.59,42.5165072]
[1734685474644,42.5165072,181.67,181.59,42.5165072]
[1734685474957,42.5165072,181.69,181.59,42.5165072]
[1734685475259,42.5165072,181.69,181.61,42.5165072]
[1734685475455,42.5165072,181.67,181.59,42.5165072]
[1734685475661,3.26049443,181.73,181.54,0.82569868]
[1734685475662,42.5165072,181.69,181.61,42.5165072]
[1734685475849,42.5165072,181.65,181.57,42.5165072]
[1734685476753,42.5165072,181.67,181.58,0.12549]
[1734685477066,42.5165072,181.69,181.59,42.5165072]
[1734685477753,42.5165072,181.71,181.63,42.5165072]
[1734685477958,42.5165072,181.75,181.67,42.5165072]
[1734685478271,42.5165072,181.77,181.69,42.5165072]
[1734685478776,42.5165072,181.77,181.67,42.5165072]
[1734685479068,42.5165072,181.77,181.69,42.5165072]
[1734685479271,42.5165072,181.79,181.69,42.5165072]
[1734685479450,42.5165072,181.77,181.69,42.5165072]
[1734685479871,42.5165072,181.77,181.67,42.5165072]
[1734685480080,42.5165072,181.8,181.67,42.5165072]
[1734685480081,42.5165072,181.75,181.67,42.5165072]
[1734685480253,42.5165072,181.77,181.67,42.5165072]
[1734685480662,42.5165072,181.77,181.69,42.5165072]
[1734685480863,42.5165072,181.75,181.67,42.5165072]
[1734685481181,42.5165072,181.77,181.69,42.5165072]
[1734685481368,42.5165072,181.79,181.7,0.12549]
[1734685481569,42.5165072,181.81,181.71,42.5165072]
[1734685481881,42.5165072,181.81,181.65,33.7625]
[1734685481882,42.5165072,181.75,181.67,42.5165072]
[1734685482053,42.5165072,181.79,181.69,42.5165072]
[1734685482247,42.5165072,181.79,181.71,42.5165072]
[1734685482477,42.5165072,181.81,181.71,42.5165072]
[1734685482979,42.5165072,181.79,181.71,42.5165072]
[1734685483477,42.5165072,181.79,181.69,42.5165072]
[1734685483781,42.5165072,181.77,181.69,42.5165072]
[1734685483983,42.5165072,181.75,181.67,42.5165072]
[1734685484277,42.5165072,181.73,181.65,42.5165072]
[1734685484476,42.5165072,181.67,181.59,42.5165072]
[1734685484679,20.0,181.62,181.54,0.82574387]
[1734685484881,42.5165072,181.59,181.52,0.82597782]
[1734685485183,42.5165072,181.55,181.45,0.82611344]
[1734685485480,42.5165072,181.51,181.43,42.5165072]
[1734685485674,42.5165072,181.47,181.39,42.5165072]
[1734685485875,42.5165072,181.45,181.38,0.82650729]
[1734685486063,42.5165072,181.45,181.37,42.5165072]
[1734685486675,42.5165072,181.45,181.35,42.5165072]
[1734685486990,42.5165072,181.39,181.31,43.34340549]
[1734685487163,42.5165072,181.37,181.29,42.5165072]
[1734685487862,42.5165072,181.44,181.27,42.5165072]
[1734685487863,42.5165072,181.35,181.27,42.5165072]
[1734685488487,42.5165072,181.35,181.23,42.5165072]